[Event "Live Chess"]
[Site "Chess.com"]
[Date "2023.05.20"]
[Round "-"]
[White "NatashaRegan"]
[Black "Brooms1989"]
[Result "1-0"]
[WhiteElo "1813"]
[BlackElo "1018"]
[TimeControl "300"]
[EndTime "13:14:14 PDT"]
[Termination "NatashaRegan won by checkmate"]

1. Nf3 {[%clk 0:04:56.1]} 1... Nc6 {[%clk 0:04:53.8]} 2. d4 {[%clk 0:04:53.8]}
2... d5 {[%clk 0:04:51.7]} 3. c4 {[%clk 0:04:51.5]} 3... Nf6 {[%clk 0:04:45.8]}
4. cxd5 {[%clk 0:04:48.6]} 4... Nxd5 {[%clk 0:04:44.1]} 5. e4 {[%clk 0:04:47.8]}
5... Nb6 {[%clk 0:04:42.2]} 6. d5 {[%clk 0:04:44.9]} 6... Nb4 {[%clk 0:04:36.5]}
7. a3 {[%clk 0:04:41.5]} 7... Na6 {[%clk 0:04:33.6]} 8. Bxa6 {[%clk 0:04:29.7]}
8... bxa6 {[%clk 0:04:33.5]} 9. O-O {[%clk 0:04:28.3]} 9... Bg4 {[%clk 0:04:27]}
10. h3 {[%clk 0:04:24.2]} 10... Bh5 {[%clk 0:04:22.6]} 11. Nc3 {[%clk
0:04:19.5]} 11... g6 {[%clk 0:04:08.5]} 12. g4 {[%clk 0:04:16.4]} 12... Bxg4
{[%clk 0:04:07.6]} 13. hxg4 {[%clk 0:04:15.1]} 13... Bg7 {[%clk 0:04:07.2]} 14.
Qe2 {[%clk 0:04:09.9]} 14... Qc8 {[%clk 0:04:03.7]} 15. Bf4 {[%clk 0:04:02]}
15... Qxg4+ {[%clk 0:04:00.1]} 16. Bg3 {[%clk 0:03:58]} 16... h5 {[%clk
0:03:33.8]} 17. Ne5 {[%clk 0:03:36]} 17... Qxe2 {[%clk 0:02:52.5]} 18. Nxe2
{[%clk 0:03:30.3]} 18... Bxe5 {[%clk 0:02:52.1]} 19. Bxe5 {[%clk 0:03:28.6]}
19... O-O {[%clk 0:02:49.4]} 20. Bxc7 {[%clk 0:03:22.7]} 20... Nd7 {[%clk
0:02:41.7]} 21. Nd4 {[%clk 0:03:11.4]} 21... Rac8 {[%clk 0:02:32.3]} 22. d6
{[%clk 0:03:01.4]} 22... exd6 {[%clk 0:02:24.9]} 23. Bxd6 {[%clk 0:02:50.5]}
23... Rfe8 {[%clk 0:02:23.1]} 24. Rfe1 {[%clk 0:02:44.3]} 24... Rc4 {[%clk
0:02:04.7]} 25. Rad1 {[%clk 0:02:40.7]} 25... Kh7 {[%clk 0:01:53.1]} 26. e5
{[%clk 0:02:36.5]} 26... f6 {[%clk 0:01:35.1]} 27. e6 {[%clk 0:02:32.8]} 27...
Nb6 {[%clk 0:01:32.1]} 28. e7 {[%clk 0:02:23.4]} 28... h4 {[%clk 0:01:15.2]} 29.
b4 {[%clk 0:02:19.5]} 29... g5 {[%clk 0:01:10.8]} 30. Nf5 {[%clk 0:02:15.7]}
30... Kg6 {[%clk 0:01:03.4]} 31. Ne3 {[%clk 0:02:07.3]} 31... Rc3 {[%clk
0:00:56.4]} 32. Nd5 {[%clk 0:01:59.2]} 32... Rc4 {[%clk 0:00:50.8]} 33. Re6
{[%clk 0:01:51.1]} 33... Rg4+ {[%clk 0:00:45.2]} 34. Kh2 {[%clk 0:01:47.8]}
34... h3 {[%clk 0:00:34.9]} 35. Nxf6 {[%clk 0:01:39.4]} 35... Rh8 {[%clk
0:00:24]} 36. Nxg4+ {[%clk 0:01:36.5]} 36... Kf7 {[%clk 0:00:22.5]} 37. Rf6+
{[%clk 0:01:33.5]} 37... Ke8 {[%clk 0:00:20.7]} 38. Rf8+ {[%clk 0:01:32.4]}
38... Rxf8 {[%clk 0:00:19.4]} 39. exf8=Q+ {[%clk 0:01:31.2]} 39... Kd7 {[%clk
0:00:19.3]} 40. Ne5+ {[%clk 0:01:25]} 40... Ke6 {[%clk 0:00:13.8]} 41. Qf7#
{[%clk 0:01:21.7]} 1-0

[Event "Live Chess"]
[Site "Chess.com"]
[Date "2023.05.20"]
[Round "-"]
[White "Salpingidis"]
[Black "BritishIsles"]
[Result "0-1"]
[WhiteElo "2242"]
[BlackElo "2433"]
[TimeControl "300"]
[EndTime "13:14:18 PDT"]
[Termination "BritishIsles won by resignation"]

1. d4 {[%clk 0:04:51.9]} 1... d6 {[%clk 0:04:57.2]} 2. c4 {[%clk 0:04:51.4]}
2... e5 {[%clk 0:04:55.2]} 3. e3 {[%clk 0:04:49.6]} 3... Nc6 {[%clk 0:04:50.9]}
4. Nc3 {[%clk 0:04:48.4]} 4... g6 {[%clk 0:04:43.7]} 5. g3 {[%clk 0:04:41.4]}
5... Bg7 {[%clk 0:04:41.1]} 6. Nge2 {[%clk 0:04:39.7]} 6... Bg4 {[%clk
0:04:33.6]} 7. d5 {[%clk 0:04:29.8]} 7... Bf3 {[%clk 0:04:20.9]} 8. Rg1 {[%clk
0:04:28.7]} 8... Nce7 {[%clk 0:04:19.4]} 9. Bg2 {[%clk 0:04:27.7]} 9... Bxg2
{[%clk 0:04:17.7]} 10. Rxg2 {[%clk 0:04:27.6]} 10... f5 {[%clk 0:04:11.2]} 11.
e4 {[%clk 0:04:24.4]} 11... Nf6 {[%clk 0:04:09.5]} 12. exf5 {[%clk 0:04:21.4]}
12... Nxf5 {[%clk 0:04:04]} 13. Bg5 {[%clk 0:04:18.9]} 13... h6 {[%clk
0:04:00.8]} 14. Bxf6 {[%clk 0:04:17.6]} 14... Qxf6 {[%clk 0:03:59.5]} 15. Ne4
{[%clk 0:04:16.5]} 15... Qe7 {[%clk 0:03:55.3]} 16. N2c3 {[%clk 0:04:14.2]}
16... O-O {[%clk 0:03:52]} 17. Qd2 {[%clk 0:04:12.8]} 17... Nd4 {[%clk
0:03:50.6]} 18. O-O-O {[%clk 0:04:10.8]} 18... c6 {[%clk 0:03:48.1]} 19. Kb1
{[%clk 0:04:06.7]} 19... a6 {[%clk 0:03:36.2]} 20. dxc6 {[%clk 0:03:57.4]} 20...
bxc6 {[%clk 0:03:34.8]} 21. f4 {[%clk 0:03:53.4]} 21... Rab8 {[%clk 0:03:32.8]}
22. fxe5 {[%clk 0:03:49.2]} 22... Qxe5 {[%clk 0:03:13.9]} 23. Re1 {[%clk
0:03:19.1]} 23... Nf3 {[%clk 0:03:11.4]} 24. Qe3 {[%clk 0:03:09.5]} 24... Nxe1
{[%clk 0:03:08.4]} 25. Qxe1 {[%clk 0:03:09.4]} 25... d5 {[%clk 0:03:06.2]} 0-1

[Event "Live Chess"]
[Site "Chess.com"]
[Date "2023.05.20"]
[Round "-"]
[White "1PRK1"]
[Black "mightysmasher"]
[Result "0-1"]
[WhiteElo "1378"]
[BlackElo "2125"]
[TimeControl "300"]
[EndTime "13:14:22 PDT"]
[Termination "mightysmasher won by resignation"]

1. e4 {[%clk 0:04:56.8]} 1... e6 {[%clk 0:04:58.8]} 2. d4 {[%clk 0:04:54.4]}
2... d5 {[%clk 0:04:58]} 3. Nc3 {[%clk 0:04:48.3]} 3... dxe4 {[%clk 0:04:56.9]}
4. Nxe4 {[%clk 0:04:46.8]} 4... c5 {[%clk 0:04:56.5]} 5. Nf3 {[%clk 0:04:42.4]}
5... Nc6 {[%clk 0:04:55.1]} 6. Be3 {[%clk 0:04:37.8]} 6... Nf6 {[%clk
0:04:53.9]} 7. Nxf6+ {[%clk 0:04:36.4]} 7... Qxf6 {[%clk 0:04:53.2]} 8. Bb5
{[%clk 0:04:30.1]} 8... Bd7 {[%clk 0:04:50.8]} 9. O-O {[%clk 0:04:27.6]} 9...
O-O-O {[%clk 0:04:49.3]} 10. Bg5 {[%clk 0:04:21.2]} 10... Qg6 {[%clk 0:04:44.4]}
11. Bxd8 {[%clk 0:04:18.2]} 11... Kxd8 {[%clk 0:04:42.4]} 12. d5 {[%clk
0:04:01.3]} 12... exd5 {[%clk 0:04:39.1]} 13. Qxd5 {[%clk 0:03:59.3]} 13... Kc8
{[%clk 0:04:37.9]} 14. Ne5 {[%clk 0:03:47.4]} 14... Nxe5 {[%clk 0:04:35.1]} 15.
Rfd1 {[%clk 0:03:14.4]} 15... Qe6 {[%clk 0:03:55.9]} 16. Qxe6 {[%clk 0:02:33.3]}
16... Bxe6 {[%clk 0:03:50.1]} 17. Re1 {[%clk 0:02:28.4]} 17... Ng6 {[%clk
0:03:40.6]} 18. Rad1 {[%clk 0:02:22.8]} 18... a6 {[%clk 0:03:38]} 19. Bd3 {[%clk
0:02:16.3]} 19... c4 {[%clk 0:03:36.3]} 20. Be4 {[%clk 0:02:12.9]} 20... Bc5
{[%clk 0:03:33]} 21. c3 {[%clk 0:01:49.2]} 21... Nf4 {[%clk 0:03:28.8]} 22. g3
{[%clk 0:01:36.6]} 22... Nh3+ {[%clk 0:03:25.5]} 23. Kg2 {[%clk 0:01:36.1]}
23... Nxf2 {[%clk 0:03:23.6]} 24. Rd2 {[%clk 0:01:27.5]} 24... Bh3+ {[%clk
0:03:21.2]} 25. Kf3 {[%clk 0:01:25.1]} 25... Nxe4 {[%clk 0:03:17.8]} 26. Rxe4
{[%clk 0:01:24]} 26... Be6 {[%clk 0:03:16.1]} 27. Rde2 {[%clk 0:01:09.5]} 27...
Bd5 {[%clk 0:03:13.8]} 28. Rd2 {[%clk 0:01:03.7]} 28... Rd8 {[%clk 0:03:10.6]}
29. Kf4 {[%clk 0:00:57]} 29... g5+ {[%clk 0:03:08.2]} 30. Kf5 {[%clk 0:00:54.5]}
30... Bxe4+ {[%clk 0:03:06.8]} 31. Kxe4 {[%clk 0:00:53]} 31... Rxd2 {[%clk
0:03:05.7]} 0-1

[Event "Live Chess"]
[Site "Chess.com"]
[Date "2023.05.20"]
[Round "-"]
[White "manthanit"]
[Black "YrrriKharkiv"]
[Result "0-1"]
[WhiteElo "1009"]
[BlackElo "2036"]
[TimeControl "300"]
[EndTime "13:14:27 PDT"]
[Termination "YrrriKharkiv won on time"]

1. e4 {[%clk 0:04:59.6]} 1... e6 {[%clk 0:04:58]} 2. Nf3 {[%clk 0:04:58.4]} 2...
d5 {[%clk 0:04:57.4]} 3. exd5 {[%clk 0:04:57.3]} 3... exd5 {[%clk 0:04:56.2]} 4.
g3 {[%clk 0:04:56.7]} 4... Bd6 {[%clk 0:04:54.9]} 5. Bg2 {[%clk 0:04:55.8]} 5...
Nc6 {[%clk 0:04:53.8]} 6. h3 {[%clk 0:04:54.6]} 6... Nge7 {[%clk 0:04:51.6]} 7.
O-O {[%clk 0:04:53.7]} 7... O-O {[%clk 0:04:50.3]} 8. d4 {[%clk 0:04:53.2]} 8...
Bf5 {[%clk 0:04:47.2]} 9. a3 {[%clk 0:04:51.1]} 9... f6 {[%clk 0:04:45.5]} 10.
c3 {[%clk 0:04:50.1]} 10... Qd7 {[%clk 0:04:44.6]} 11. Kh2 {[%clk 0:04:46.7]}
11... Ng6 {[%clk 0:04:39.7]} 12. Nbd2 {[%clk 0:04:35.1]} 12... h5 {[%clk
0:04:36]} 13. c4 {[%clk 0:04:27.1]} 13... dxc4 {[%clk 0:04:25.9]} 14. Nxc4
{[%clk 0:04:25.9]} 14... h4 {[%clk 0:04:22.3]} 15. Nxd6 {[%clk 0:04:24.4]} 15...
Qxd6 {[%clk 0:04:11.1]} 16. Nxh4 {[%clk 0:04:08.7]} 16... Nxh4 {[%clk
0:04:08.6]} 17. Bf4 {[%clk 0:04:08.2]} 17... Qxd4 {[%clk 0:03:50.3]} 18. Qxd4
{[%clk 0:04:00.4]} 18... Nxd4 {[%clk 0:03:47.4]} 19. gxh4 {[%clk 0:03:59.5]}
19... c6 {[%clk 0:03:36.7]} 20. Rad1 {[%clk 0:03:55.6]} 20... Ne6 {[%clk
0:03:28.6]} 21. Rfe1 {[%clk 0:03:50.1]} 21... Nxf4 {[%clk 0:03:26.8]} 22. Be4
{[%clk 0:03:36.7]} 22... Bxe4 {[%clk 0:03:22.6]} 23. Rxe4 {[%clk 0:03:35.1]}
23... Nd5 {[%clk 0:03:22.2]} 24. Rg4 {[%clk 0:03:30.2]} 24... Kf7 {[%clk
0:03:17.9]} 25. Rdg1 {[%clk 0:03:27.9]} 25... Rg8 {[%clk 0:03:11.4]} 26. h5
{[%clk 0:03:26.9]} 26... Rae8 {[%clk 0:03:01.1]} 27. f3 {[%clk 0:02:57.6]} 27...
Ne3 {[%clk 0:02:40.1]} 28. Re4 {[%clk 0:02:50.3]} 28... Rxe4 {[%clk 0:02:36.2]}
29. fxe4 {[%clk 0:02:49.7]} 29... Nc4 {[%clk 0:02:31.2]} 30. Rd1 {[%clk
0:02:47.9]} 30... Ke6 {[%clk 0:02:29.4]} 31. Kg3 {[%clk 0:02:45.5]} 31... Rh8
{[%clk 0:02:21.7]} 32. Kh4 {[%clk 0:02:39.8]} 32... Ne5 {[%clk 0:02:05.3]} 33.
Kg3 {[%clk 0:02:14.3]} 33... Ke7 {[%clk 0:01:56.5]} 34. b3 {[%clk 0:02:03.5]}
34... Rxh5 {[%clk 0:01:55.2]} 35. Kh2 {[%clk 0:01:59.8]} 35... g5 {[%clk
0:01:52.3]} 36. Kg2 {[%clk 0:01:45.8]} 36... Rh4 {[%clk 0:01:50.1]} 37. a4
{[%clk 0:01:16.8]} 37... Rxe4 {[%clk 0:01:43.5]} 38. Rd2 {[%clk 0:01:05.1]}
38... Ng6 {[%clk 0:01:36.7]} 39. Kf2 {[%clk 0:00:55]} 39... Nf4 {[%clk
0:01:24.9]} 40. Kf3 {[%clk 0:00:41.7]} 40... Re1 {[%clk 0:01:15.8]} 41. h4
{[%clk 0:00:33.9]} 41... Rh1 {[%clk 0:00:59.8]} 42. hxg5 {[%clk 0:00:30.9]}
42... fxg5 {[%clk 0:00:59.2]} 43. Kg4 {[%clk 0:00:29.3]} 43... Ne6 {[%clk
0:00:56.6]} 44. Re2 {[%clk 0:00:27.1]} 44... Rh4+ {[%clk 0:00:53]} 45. Kf5
{[%clk 0:00:26.1]} 45... Rf4+ {[%clk 0:00:48.8]} 46. Ke5 {[%clk 0:00:16.5]}
46... g4 {[%clk 0:00:41.3]} 47. Rh2 {[%clk 0:00:15]} 47... g3 {[%clk 0:00:37.9]}
48. Rh7+ {[%clk 0:00:13.6]} 48... Rf7 {[%clk 0:00:35.9]} 49. Rh3 {[%clk
0:00:10.1]} 49... Rg7 {[%clk 0:00:32.5]} 50. Rh6 {[%clk 0:00:05.2]} 50... Nc5
{[%clk 0:00:29.1]} 51. Kd4 {[%clk 0:00:00.8]} 51... Nxb3+ {[%clk 0:00:26.4]} 0-1

[Event "Live Chess"]
[Site "Chess.com"]
[Date "2023.05.20"]
[Round "-"]
[White "booktrunk"]
[Black "Jo1ts"]
[Result "1-0"]
[WhiteElo "1291"]
[BlackElo "729"]
[TimeControl "300"]
[EndTime "13:14:27 PDT"]
[Termination "booktrunk won by resignation"]

1. d4 {[%clk 0:04:59.4]} 1... d5 {[%clk 0:04:58.8]} 2. c3 {[%clk 0:04:58.1]}
2... Nf6 {[%clk 0:04:53.4]} 3. Bf4 {[%clk 0:04:57.1]} 3... Bf5 {[%clk
0:04:48.8]} 4. Nf3 {[%clk 0:04:55.7]} 4... c5 {[%clk 0:04:45.3]} 5. h3 {[%clk
0:04:49.3]} 5... Nc6 {[%clk 0:04:35.5]} 6. dxc5 {[%clk 0:04:47.4]} 6... e6
{[%clk 0:04:32.9]} 7. b4 {[%clk 0:04:43.6]} 7... b6 {[%clk 0:04:28.6]} 8. cxb6
{[%clk 0:04:41.8]} 8... Qxb6 {[%clk 0:04:24.4]} 9. e3 {[%clk 0:04:34.7]} 9...
Be7 {[%clk 0:04:08.8]} 10. Bd3 {[%clk 0:04:31.2]} 10... Bxd3 {[%clk 0:04:02]}
11. Qxd3 {[%clk 0:04:29.6]} 11... O-O {[%clk 0:03:59.6]} 12. O-O {[%clk
0:04:27.7]} 12... Rad8 {[%clk 0:03:46]} 13. a3 {[%clk 0:04:25.4]} 13... a5
{[%clk 0:03:40.6]} 14. Nbd2 {[%clk 0:04:22.9]} 14... axb4 {[%clk 0:03:37.8]} 15.
axb4 {[%clk 0:04:22.1]} 15... Ra8 {[%clk 0:03:34.8]} 16. Rxa8 {[%clk 0:04:20.4]}
16... Rxa8 {[%clk 0:03:34.7]} 17. Nd4 {[%clk 0:04:15.4]} 17... Ra3 {[%clk
0:03:25.1]} 18. Nxc6 {[%clk 0:04:11.8]} 18... Qxc6 {[%clk 0:03:23]} 19. Be5
{[%clk 0:04:06.5]} 19... Qxc3 {[%clk 0:03:15.4]} 20. Bxc3 {[%clk 0:04:05]} 20...
Rxc3 {[%clk 0:03:15.3]} 21. Qxc3 {[%clk 0:04:04.4]} 1-0

[Event "Live Chess"]
[Site "Chess.com"]
[Date "2023.05.20"]
[Round "-"]
[White "Doge_Dandolo"]
[Black "FlyingChessKestrel13"]
[Result "1-0"]
[WhiteElo "2037"]
[BlackElo "2123"]
[TimeControl "300"]
[EndTime "13:14:28 PDT"]
[Termination "Doge_Dandolo won by resignation"]

1. Nf3 {[%clk 0:04:57.3]} 1... d5 {[%clk 0:04:58.8]} 2. c4 {[%clk 0:04:56.5]}
2... d4 {[%clk 0:04:57.6]} 3. b4 {[%clk 0:04:54.8]} 3... a5 {[%clk 0:04:55]} 4.
Qa4+ {[%clk 0:04:52.1]} 4... Bd7 {[%clk 0:04:52.9]} 5. b5 {[%clk 0:04:51.2]}
5... c5 {[%clk 0:04:47.3]} 6. g3 {[%clk 0:04:49]} 6... Nf6 {[%clk 0:04:41.8]} 7.
Bg2 {[%clk 0:04:48]} 7... Qc8 {[%clk 0:04:39.9]} 8. d3 {[%clk 0:04:43.6]} 8...
e6 {[%clk 0:04:37.7]} 9. Bg5 {[%clk 0:04:40.8]} 9... Be7 {[%clk 0:04:36]} 10.
Nbd2 {[%clk 0:04:34.9]} 10... O-O {[%clk 0:04:34.6]} 11. O-O {[%clk 0:04:32.6]}
11... Ra7 {[%clk 0:04:33]} 12. Bxf6 {[%clk 0:04:22.1]} 12... Bxf6 {[%clk
0:04:30.2]} 13. Ne4 {[%clk 0:04:20.9]} 13... Be7 {[%clk 0:04:15.1]} 14. Rfe1
{[%clk 0:04:17.7]} 14... b6 {[%clk 0:04:06.1]} 15. e3 {[%clk 0:04:16.3]} 15...
dxe3 {[%clk 0:04:02.8]} 16. Rxe3 {[%clk 0:04:14.3]} 16... f6 {[%clk 0:04:00.3]}
17. Qc2 {[%clk 0:04:05.7]} 17... e5 {[%clk 0:03:58.7]} 18. Nc3 {[%clk 0:04:03]}
18... Be6 {[%clk 0:03:56.9]} 19. Nd2 {[%clk 0:03:55.6]} 19... Rd8 {[%clk
0:03:54.2]} 20. Nd5 {[%clk 0:03:49.3]} 20... Kh8 {[%clk 0:03:52.7]} 21. Rae1
{[%clk 0:03:45.2]} 21... Bxd5 {[%clk 0:03:46]} 22. Bxd5 {[%clk 0:03:43.3]} 22...
Nd7 {[%clk 0:03:44.8]} 23. f4 {[%clk 0:03:40.8]} 23... Qc7 {[%clk 0:03:42.8]}
24. Ne4 {[%clk 0:03:25.9]} 24... exf4 {[%clk 0:03:39.9]} 25. gxf4 {[%clk
0:03:08.3]} 25... Qxf4 {[%clk 0:03:37.4]} 26. Qg2 {[%clk 0:03:03.1]} 26... Ne5
{[%clk 0:03:29.8]} 27. Rg3 {[%clk 0:02:55.8]} 27... Bf8 {[%clk 0:03:20.1]} 28.
Rf1 {[%clk 0:02:52.5]} 28... Qh6 {[%clk 0:03:10.4]} 29. Rh3 {[%clk 0:02:44.9]}
1-0

[Event "Live Chess"]
[Site "Chess.com"]
[Date "2023.05.20"]
[Round "-"]
[White "Enhard"]
[Black "rideuv21"]
[Result "1/2-1/2"]
[WhiteElo "1468"]
[BlackElo "1814"]
[TimeControl "300"]
[EndTime "13:14:29 PDT"]
[Termination "Game drawn - insufficient material"]

1. d4 {[%clk 0:04:58.2]} 1... c5 {[%clk 0:04:59.9]} 2. Nf3 {[%clk 0:04:56.1]}
2... cxd4 {[%clk 0:04:59.8]} 3. Qxd4 {[%clk 0:04:54.4]} 3... Nc6 {[%clk
0:04:58.1]} 4. Qd1 {[%clk 0:04:53.2]} 4... g6 {[%clk 0:04:57.6]} 5. Bf4 {[%clk
0:04:51.3]} 5... Bg7 {[%clk 0:04:57.1]} 6. c3 {[%clk 0:04:50.1]} 6... Nf6 {[%clk
0:04:56.5]} 7. e3 {[%clk 0:04:47.7]} 7... O-O {[%clk 0:04:50.8]} 8. Be2 {[%clk
0:04:46]} 8... d5 {[%clk 0:04:49.8]} 9. O-O {[%clk 0:04:43.6]} 9... Re8 {[%clk
0:04:49.1]} 10. h3 {[%clk 0:04:40.9]} 10... e5 {[%clk 0:04:48.4]} 11. Bh2 {[%clk
0:04:40.4]} 11... Bf5 {[%clk 0:04:47]} 12. Nbd2 {[%clk 0:04:38.7]} 12... Rc8
{[%clk 0:04:43.9]} 13. Bb5 {[%clk 0:04:37.7]} 13... Nd7 {[%clk 0:04:40]} 14.
Bxc6 {[%clk 0:04:31.7]} 14... Rxc6 {[%clk 0:04:33.4]} 15. Nb3 {[%clk 0:04:27.8]}
15... b6 {[%clk 0:04:31.5]} 16. Qxd5 {[%clk 0:04:22.3]} 16... Qc7 {[%clk
0:04:27.7]} 17. Qd1 {[%clk 0:04:07.8]} 17... Nc5 {[%clk 0:04:20.3]} 18. Nxc5
{[%clk 0:04:04.2]} 18... Rxc5 {[%clk 0:04:20.2]} 19. Qb3 {[%clk 0:03:54.9]}
19... Qb7 {[%clk 0:04:08.8]} 20. Rad1 {[%clk 0:03:45.8]} 20... Be6 {[%clk
0:04:05.3]} 21. Qb4 {[%clk 0:03:35.5]} 21... a5 {[%clk 0:04:00.6]} 22. Qa3
{[%clk 0:03:17.6]} 22... Bd5 {[%clk 0:03:50.7]} 23. Nd2 {[%clk 0:03:03.1]} 23...
Bxg2 {[%clk 0:03:36.2]} 24. Rfe1 {[%clk 0:02:50.5]} 24... Bxh3 {[%clk
0:03:31.9]} 25. f3 {[%clk 0:02:37]} 25... Qe7 {[%clk 0:03:16.3]} 26. Ne4 {[%clk
0:02:27.2]} 26... Rc4 {[%clk 0:03:03.3]} 27. Qxe7 {[%clk 0:02:24.5]} 27... Rxe7
{[%clk 0:03:01.4]} 28. Rd8+ {[%clk 0:02:20.3]} 28... Bf8 {[%clk 0:02:58]} 29.
Nf6+ {[%clk 0:02:08]} 29... Kg7 {[%clk 0:02:51.3]} 30. Ne8+ {[%clk 0:02:03.4]}
30... Kh6 {[%clk 0:02:33.7]} 31. f4 {[%clk 0:01:58.2]} 31... exf4 {[%clk
0:02:20]} 32. Bxf4+ {[%clk 0:01:56.2]} 32... Rxf4 {[%clk 0:02:18]} 33. exf4
{[%clk 0:01:28.2]} 33... Rxe1+ {[%clk 0:02:11]} 34. Kf2 {[%clk 0:01:28.1]} 34...
Re7 {[%clk 0:02:02.2]} 35. Nf6 {[%clk 0:01:23.1]} 35... Bg7 {[%clk 0:01:58.1]}
36. Ng8+ {[%clk 0:01:20.3]} 36... Kh5 {[%clk 0:01:54.7]} 37. Rd5+ {[%clk
0:01:08.2]} 37... f5 {[%clk 0:01:47.8]} 38. Nxe7 {[%clk 0:01:04.6]} 38... Kg4
{[%clk 0:01:43.6]} 39. Rd1 {[%clk 0:00:54.5]} 39... Kxf4 {[%clk 0:01:40.1]} 40.
Nd5+ {[%clk 0:00:49.5]} 40... Kg5 {[%clk 0:01:35.3]} 41. Rg1+ {[%clk 0:00:46.9]}
41... Kh4 {[%clk 0:01:28.9]} 42. Rh1 {[%clk 0:00:30.5]} 42... g5 {[%clk
0:01:27.5]} 43. Ne3 {[%clk 0:00:27.6]} 43... f4 {[%clk 0:01:24.6]} 44. Nf5+
{[%clk 0:00:24.8]} 44... Kg4 {[%clk 0:01:21]} 45. Nxg7 {[%clk 0:00:23.4]} 45...
h5 {[%clk 0:01:20.7]} 46. Nxh5 {[%clk 0:00:19.3]} 46... Kxh5 {[%clk 0:01:17.2]}
47. Rxh3+ {[%clk 0:00:18.8]} 47... Kg6 {[%clk 0:01:16.6]} 48. Rh8 {[%clk
0:00:17.4]} 48... g4 {[%clk 0:01:14.9]} 49. Rg8+ {[%clk 0:00:16.6]} 49... Kf5
{[%clk 0:01:13.9]} 50. Rf8+ {[%clk 0:00:15.8]} 50... Ke4 {[%clk 0:01:12.5]} 51.
Re8+ {[%clk 0:00:13.8]} 51... Kd3 {[%clk 0:01:11.1]} 52. Rf8 {[%clk 0:00:13.4]}
52... f3 {[%clk 0:01:09]} 53. Rf4 {[%clk 0:00:13.3]} 53... Kc2 {[%clk
0:01:07.5]} 54. Rxg4 {[%clk 0:00:12.4]} 54... Kxb2 {[%clk 0:01:07.4]} 55. Kxf3
{[%clk 0:00:11.8]} 55... Kxa2 {[%clk 0:01:07.3]} 56. Rg6 {[%clk 0:00:11.1]}
56... Kb3 {[%clk 0:01:06.7]} 57. Rxb6+ {[%clk 0:00:11]} 57... Kxc3 {[%clk
0:01:05.6]} 58. Ra6 {[%clk 0:00:10.3]} 58... Kb4 {[%clk 0:01:05.2]} 59. Rxa5
{[%clk 0:00:09.7]} 59... Kxa5 {[%clk 0:01:02.8]} 1/2-1/2

[Event "Live Chess"]
[Site "Chess.com"]
[Date "2023.05.20"]
[Round "-"]
[White "Woodpusher500"]
[Black "Conradical12"]
[Result "0-1"]
[WhiteElo "1254"]
[BlackElo "1579"]
[TimeControl "300"]
[EndTime "13:14:29 PDT"]
[Termination "Conradical12 won by resignation"]

1. e4 {[%clk 0:04:57.5]} 1... e5 {[%clk 0:04:58.5]} 2. Nc3 {[%clk 0:04:52.8]}
2... Nc6 {[%clk 0:04:57.9]} 3. Bc4 {[%clk 0:04:50]} 3... Nf6 {[%clk 0:04:57.3]}
4. d3 {[%clk 0:04:45.5]} 4... Bc5 {[%clk 0:04:56.1]} 5. Bg5 {[%clk 0:04:39]}
5... h6 {[%clk 0:04:49.9]} 6. Bh4 {[%clk 0:04:36.3]} 6... O-O {[%clk 0:04:20.3]}
7. Nd5 {[%clk 0:04:27.8]} 7... d6 {[%clk 0:04:12.8]} 8. Nxf6+ {[%clk 0:04:19.4]}
8... gxf6 {[%clk 0:04:09.8]} 9. Nf3 {[%clk 0:04:03.8]} 9... Kh7 {[%clk 0:04:07]}
10. Qd2 {[%clk 0:03:49.9]} 10... Rg8 {[%clk 0:04:00.4]} 11. g3 {[%clk
0:03:42.4]} 11... Bg4 {[%clk 0:03:57.8]} 12. Ng1 {[%clk 0:03:19.8]} 12... Rg7
{[%clk 0:03:55.5]} 13. Ne2 {[%clk 0:03:15.8]} 13... Bxe2 {[%clk 0:03:42]} 14.
Qxe2 {[%clk 0:03:12.1]} 14... Nd4 {[%clk 0:03:41.9]} 15. Qd2 {[%clk 0:02:53.6]}
15... Nf3+ {[%clk 0:03:40.2]} 16. Ke2 {[%clk 0:02:46.4]} 16... Nxd2 {[%clk
0:03:37.9]} 17. Kxd2 {[%clk 0:02:44.1]} 17... b5 {[%clk 0:03:36.4]} 18. Rag1
{[%clk 0:02:39.3]} 18... bxc4 {[%clk 0:03:34.7]} 19. dxc4 {[%clk 0:02:37.2]}
19... c6 {[%clk 0:03:32.9]} 20. g4 {[%clk 0:02:25.7]} 20... Qa5+ {[%clk
0:03:30.6]} 21. c3 {[%clk 0:02:23.5]} 21... Qxa2 {[%clk 0:03:28.1]} 22. Kc2
{[%clk 0:02:20.6]} 22... Qa4+ {[%clk 0:03:25.9]} 23. Kd3 {[%clk 0:02:17.5]}
23... Rg6 {[%clk 0:03:22.3]} 24. h3 {[%clk 0:02:07.5]} 24... d5 {[%clk 0:03:19]}
25. exd5 {[%clk 0:02:04.7]} 25... cxd5 {[%clk 0:03:17.4]} 26. Ke2 {[%clk
0:01:59.1]} 26... Qxc4+ {[%clk 0:03:15.4]} 27. Kd2 {[%clk 0:01:54.9]} 27... d4
{[%clk 0:03:11.5]} 28. Rc1 {[%clk 0:01:47.1]} 28... dxc3+ {[%clk 0:03:09]} 29.
Rxc3 {[%clk 0:01:43.4]} 29... Bb4 {[%clk 0:03:07.4]} 30. Kc2 {[%clk 0:01:28.5]}
30... Bxc3 {[%clk 0:03:05.6]} 31. bxc3 {[%clk 0:01:26.8]} 31... Rc8 {[%clk
0:03:02.4]} 32. Kd2 {[%clk 0:01:24.6]} 32... Qxc3+ {[%clk 0:02:59.5]} 0-1